[Event "German-ch Blitz Women 2022"]
[Site "Magdeburg"]
[Date "2022.08.13"]
[Round "17.10"]
[White "Daemering, Katrin"]
[Black "Rath, Alina"]
[Result "0-1"]
[ECO "B32"]
[WhiteElo "1965"]
[BlackElo "2062"]
[Annotator "NA RC"]
[PlyCount "78"]
[EventDate "2022.08.10"]
[EventType "tourn"]
[EventCountry "GER"]
[SourceTitle "playchess.com"]
[Source "ChessBase"]
[SourceQuality "1"]
[TimeControl "180+2"]

1. e4 {[%emt 0:00:01]} c5 {[%emt 0:00:01]} 2. Nf3 {[%emt 0:00:01]} Nc6 {[%emt 0:00:01]} 3. d4 {[%emt 0:00:01]} cxd4 {[%emt 0:00:00]} 4. c3 {[%emt 0:00:01]} d3 {[%emt 0:00:02]} 5. Bxd3 {[%emt 0:00:01]} g6 {[%emt 0:00:01]} 6. O-O {[%emt 0:00:03]} Bg7 {[%emt 0:00:01]} 7. Be3 {[%emt 0:00:03]} e6 {[%emt 0:00:02]} 8. Nbd2 {[%emt 0:00:12]} Nge7 {[%emt 0:00:02]} 9. Nc4 {[%emt 0:00:11]} d5 {[%emt 0:00:04]} 10. exd5 {[%emt 0:00:13]} exd5 {[%emt 0:00:02]} 11. Ncd2 {[%emt 0:00:10]} O-O {[%emt 0:00:04]} 12. Re1 {[%emt 0:00:03]} Bg4 {[%emt 0:00:06]} 13. h3 {[%emt 0:00:02]} Be6 {[%emt 0:00:06]} 14. Nb3 {[%emt 0:00:14]} b6 {[%emt 0:00:03]} 15. Nfd4 {[%emt 0:00:10]} Nxd4 {[%emt 0:00:04]} 16. Nxd4 {[%emt 0:00:02]} Bd7 {[%emt 0:00:04]} 17. Qf3 {[%emt 0:00:11]} Be6 {[%emt 0:00:25]} 18. Bg5 {[%emt 0:00:07]} Qd7 {[%emt 0:00:05]} 19. Rad1 {[%emt 0:00:11]} Nc6 {[%emt 0:00:07]} 20. Bb5 {[%emt 0:00:06]} Nxd4 {[%emt 0:00:07]} 21. Bxd7 {[%emt 0:00:11]} Nxf3+ {[%emt 0:00:02]} 22. gxf3 {[%emt 0:00:02]} Bxd7 {[%emt 0:00:01]} 23. Rxd5 {[%emt 0:00:01]} Be6 {[%emt 0:00:01]} 24. Rd2 {[%emt 0:00:06]} Bxa2 {[%emt 0:00:06]} 25. Re7 {[%emt 0:00:07]} Be6 {[%emt 0:00:07]} 26. Kg2 {[%emt 0:00:03]} h6 {[%emt 0:00:02]} 27. Bf4 {[%emt 0:00:06]} g5 {[%emt 0:00:04]} 28. Bg3 {[%emt 0:00:11]} Rfc8 {[%emt 0:00:06]} 29. f4 {[%emt 0:00:08]} Bf8 {[%emt 0:00:04]} 30. Rb7 {[%emt 0:00:04]} Bc5 {[%emt 0:00:21]} 31. fxg5 {[%emt 0:00:07]} hxg5 {[%emt 0:00:01]} 32. Be5 {[%emt 0:00:09]} a5 {[%emt 0:00:04]} 33. Bf6 {[%emt 0:00:22]} Rab8 {[%emt 0:00:24]} 34. Ra7 {[%emt 0:00:07]} Ra8 {[%emt 0:00:03]} 35. Rb7 {[%emt 0:00:02]} Kh7 {[%emt 0:00:02]} 36. Bxg5 {[%emt 0:00:07]} Kg6 {[%emt 0:00:01]} 37. h4 {[%emt 0:00:05]} f6 {[%emt 0:00:13]} 38. Bf4 {[%emt 0:00:01]} Rd8 {[%emt 0:00:01]} 39. Re2 {[%emt 0:00:06]} Bd5+ {[%emt 0:00:01]} 0-1

[Event "German-ch Blitz Women 2022"]
[Site "Magdeburg"]
[Date "2022.08.13"]
[Round "17.11"]
[White "Khrapko, Marharyta"]
[Black "Skibbe, Diana"]
[Result "1-0"]
[ECO "C80"]
[WhiteElo "2128"]
[BlackElo "1943"]
[Annotator "NA RC"]
[PlyCount "63"]
[EventDate "2022.08.10"]
[EventType "tourn"]
[EventCountry "GER"]
[SourceTitle "playchess.com"]
[Source "ChessBase"]
[SourceQuality "1"]
[TimeControl "180+2"]

1. e4 {[%emt 0:00:01]} e5 {[%emt 0:00:01]} 2. Nf3 {[%emt 0:00:01]} Nc6 {[%emt 0:00:01]} 3. Bb5 {[%emt 0:00:01]} a6 {[%emt 0:00:01]} 4. Ba4 {[%emt 0:00:01]} Nf6 {[%emt 0:00:01]} 5. O-O {[%emt 0:00:01]} Nxe4 {[%emt 0:00:01]} 6. d4 {[%emt 0:00:03]} b5 {[%emt 0:00:01]} 7. Bb3 {[%emt 0:00:01]} d5 {[%emt 0:00:01]} 8. dxe5 {[%emt 0:00:04]} Be6 {[%emt 0:00:01]} 9. Be3 {[%emt 0:00:22]} Be7 {[%emt 0:00:03]} 10. c3 {[%emt 0:00:04]} O-O {[%emt 0:00:03]} 11. Nbd2 {[%emt 0:00:04]} f5 {[%emt 0:00:11]} 12. exf6 {[%emt 0:00:09]} Nxf6 {[%emt 0:00:02]} 13. Ng5 {[%emt 0:00:09]} Qd7 {[%emt 0:00:28]} 14. Nxe6 {[%emt 0:00:04]} Qxe6 {[%emt 0:00:02]} 15. Nf3 {[%emt 0:00:02]} Na5 {[%emt 0:00:13]} 16. Bc2 {[%emt 0:00:01]} Nc4 {[%emt 0:00:03]} 17. Bd4 {[%emt 0:00:14]} c5 {[%emt 0:00:10]} 18. Ng5 {[%emt 0:00:07]} Qd6 {[%emt 0:00:17]} 19. Bxf6 {[%emt 0:00:03]} Bxf6 {[%emt 0:00:13]} 20. Nxh7 {[%emt 0:00:08]} Rf7 {[%emt 0:00:09]} 21. b3 {[%emt 0:00:32]} Ne5 {[%emt 0:00:02]} 22. Qh5 {[%emt 0:00:09]} g6 {[%emt 0:00:26]} 23. Nxf6+ {[%emt 0:00:03]} Rxf6 {[%emt 0:00:04]} 24. Qh4 {[%emt 0:00:09]} Kg7 {[%emt 0:00:01]} 25. Rae1 {[%emt 0:00:17]} Rh8 {[%emt 0:00:02]} 26. Qg3 {[%emt 0:00:01]} Re6 {[%emt 0:00:18]} 27. f4 {[%emt 0:00:12]} Nf7 {[%emt 0:00:09]} 28. Rxe6 {[%emt 0:00:04]} Qxe6 {[%emt 0:00:03]} 29. f5 {[%emt 0:00:02]} Qd6 {[%emt 0:00:13]} 30. fxg6 {[%emt 0:00:03]} Qxg3 {[%emt 0:00:03]} 31. Rxf7+ {[%emt 0:00:02]} Kg8 {[%emt 0:00:04]} 32. hxg3 {[%emt 0:00:02]} 1-0

[Event "German-ch Blitz Women 2022"]
[Site "Magdeburg"]
[Date "2022.08.13"]
[Round "17.12"]
[White "Grabowski, Petra"]
[Black "Braun, Kristin"]
[Result "0-1"]
[ECO "A48"]
[WhiteElo "1643"]
[BlackElo "1897"]
[Annotator "NA RC COMBH"]
[PlyCount "134"]
[EventDate "2022.08.10"]
[EventType "tourn"]
[EventCountry "GER"]
[SourceTitle "playchess.com"]
[Source "ChessBase"]
[SourceQuality "1"]
[TimeControl "180+2"]

1. d4 {[%emt 0:00:01]} Nf6 {[%emt 0:00:00]} 2. Nf3 g6 3. Nc3 {[%emt 0:00:05]} d5 {[%emt 0:00:01]} 4. Bf4 {[%emt 0:00:03]} Bg7 {[%emt 0:00:01]} 5. e3 {[%emt 0:00:01]} O-O {[%emt 0:00:01]} 6. Nb5 {[%emt 0:00:04]} Na6 {[%emt 0:00:08]} 7. Nc3 {[%emt 0:00:01]} c6 {[%emt 0:00:12]} 8. Bxa6 {[%emt 0:00:03]} bxa6 {[%emt 0:00:00]} 9. O-O {[%emt 0:00:06]} Bg4 {[%emt 0:00:13]} 10. h3 {[%emt 0:00:06]} Bd7 {[%emt 0:00:05]} 11. Ne5 {[%emt 0:00:06]} Rc8 {[%emt 0:00:15]} 12. Na4 {[%emt 0:00:07]} Bf5 {[%emt 0:00:11]} 13. Nc5 {[%emt 0:00:10]} Qb6 {[%emt 0:00:18]} 14. b3 {[%emt 0:00:20]} Rfd8 {[%emt 0:00:17]} 15. c4 {[%emt 0:00:19]} Nd7 {[%emt 0:00:10]} 16. Nexd7 {[%emt 0:00:15]} Bxd7 {[%emt 0:00:01]} 17. cxd5 cxd5 18. Qe2 {[%emt 0:00:20]} Bb5 {[%emt 0:00:01]} 19. Nd3 {[%emt 0:00:04]} Rc3 {[%emt 0:00:03]} 20. Rac1 {[%emt 0:00:10]} Rdc8 {[%emt 0:00:33]} 21. Qb2 {[%emt 0:00:14]} Bxd3 {[%emt 0:00:48]} 22. Rxc3 {[%emt 0:00:03]} Rxc3 23. Qxc3 {[%emt 0:00:05]} Bxf1 {[%emt 0:00:02]} 24. Qc8+ {[%emt 0:00:02]} Bf8 {[%emt 0:00:03]} 25. Kxf1 {[%emt 0:00:04]} e6 {[%emt 0:00:15]} 26. Qc2 {[%emt 0:00:15]} Qb5+ {[%emt 0:00:00]} 27. Kg1 {[%emt 0:00:03]} Qa5 {[%emt 0:00:05]} 28. g4 {[%emt 0:00:08]} Bb4 {[%emt 0:00:03]} 29. Kg2 {[%emt 0:00:02]} Qd8 {[%emt 0:00:03]} 30. Be5 {[%emt 0:00:01]} f6 {[%emt 0:00:01]} 31. Bf4 {[%emt 0:00:02]} Kf7 {[%emt 0:00:02]} 32. Qc7+ {[%emt 0:00:03]} Qxc7 {[%emt 0:00:02]} 33. Bxc7 {[%emt 0:00:00]} a5 {[%emt 0:00:04]} 34. Bb8 {[%emt 0:00:03]} a6 {[%emt 0:00:00]} 35. Bc7 {[%emt 0:00:02]} Ke7 {[%emt 0:00:01]} 36. Bf4 {[%emt 0:00:06]} f5 {[%emt 0:00:01]} 37. gxf5 {[%emt 0:00:02]} exf5 {[%emt 0:00:01]} 38. h4 {[%emt 0:00:04]} h5 {[%emt 0:00:01]} 39. Be5 {[%emt 0:00:08]} Kd7 {[%emt 0:00:02]} 40. f4 {[%emt 0:00:04]} Kc6 {[%emt 0:00:01]} 41. Bf6 {[%emt 0:00:02]} Kb5 {[%emt 0:00:01]} 42. Kf2 {[%emt 0:00:04]} a4 {[%emt 0:00:01]} 43. Ke2 {[%emt 0:00:03]} axb3 {[%emt 0:00:01]} 44. axb3 {[%emt 0:00:01]} Bd6 {[%emt 0:00:02]} 45. Kd3 {[%emt 0:00:03]} Kb4 46. Kc2 {[%emt 0:00:02]} Ka3 {[%emt 0:00:03]} 47. Bd8 {[%emt 0:00:02]} Bb4 {[%emt 0:00:01]} 48. Bc7 {[%emt 0:00:01]} Be1 {[%emt 0:00:02]} 49. Be5 {[%emt 0:00:01]} Bxh4 {[%emt 0:00:02]} 50. Bd6+ {[%emt 0:00:03]} Ka2 {[%emt 0:00:01]} 51. b4 {[%emt 0:00:01]} Bd8 {[%emt 0:00:01]} 52. Bc5 {[%emt 0:00:02]} h4 {[%emt 0:00:01]} 53. b5 {[%emt 0:00:10]} axb5 {[%emt 0:00:02]} 54. Bb4 {[%emt 0:00:00]} h3 {[%emt 0:00:01]} 55. Be1 {[%emt 0:00:01]} h2 {[%emt 0:00:01]} 56. Bb4 {[%emt 0:00:03]} h1=Q {[%emt 0:00:02]} 57. Bc3 {[%emt 0:00:01]} Qg2+ {[%emt 0:00:01]} 58. Kd3 {[%emt 0:00:01]} Qe4+ {[%emt 0:00:01]} 59. Kd2 {[%emt 0:00:00]} Kb3 {[%emt 0:00:04]} 60. Ba1 {[%emt 0:00:03]} Ba5+ {[%emt 0:00:00]} 61. Ke2 {[%emt 0:00:01]} Bc3 {[%emt 0:00:02]} 62. Bxc3 {[%emt 0:00:02]} Kxc3 {[%emt 0:00:01]} 63. Kf2 {[%emt 0:00:01]} Kd2 {[%emt 0:00:01]} 64. Kg3 {[%emt 0:00:00]} Qxe3+ {[%emt 0:00:01]} 65. Kh4 {[%emt 0:00:01]} Qxf4+ {[%emt 0:00:01]} 66. Kh3 {[%emt 0:00:01]} Qg5 {[%emt 0:00:01]} 67. Kh2 Ke2 {[%emt 0:00:00]} 0-1

[Event "German-ch Blitz Women 2022"]
[Site "Magdeburg"]
[Date "2022.08.13"]
[Round "18.1"]
[White "Paehtz, Elisabeth"]
[Black "Braun, Kristin"]
[Result "1-0"]
[ECO "A48"]
[WhiteElo "2484"]
[BlackElo "1897"]
[Annotator "TA"]
[PlyCount "67"]
[EventDate "2022.08.10"]
[EventType "tourn"]
[EventCountry "GER"]
[SourceTitle "playchess.com"]
[Source "ChessBase"]
[SourceQuality "1"]
[TimeControl "180+2"]

{[%evp 17,67,10,1,0,6,7,29,23,59,35,118,71,70,65,77,70,93,89,97,95,216,229,224,227,216,215,404,413,425,409,422,404,404,399,413,416,485,466,577,469,466,464,428,434,440,424,408,380,1007,1006,934,819]} 1. d4 {[%emt 0:00:01]} Nf6 {[%emt 0:00:00]} 2. Nf3 {[%emt 0:00:01]} g6 {[%emt 0:00:00]} 3. Bg5 {[%emt 0:00:01]} Bg7 {[%emt 0:00:01]} 4. Nbd2 {[%emt 0:00:02]} O-O {[%emt 0:00:03]} 5. c3 {[%emt 0:00:01]} d5 {[%emt 0:00:03]} 6. e3 {[%emt 0:00:01]} Nbd7 {[%emt 0:00:04]} 7. Be2 {[%emt 0:00:02]} b6 {[%emt 0:00:01]} 8. O-O Bb7 9. b4 {[%emt 0:00:09]} c5 {[%emt 0:00:07]} 10. bxc5 {[%emt 0:00:03] D03: 1 d4 d5 2 Nf3 Nf6 3 Bg5, including Torre Attack with early ...d5.} bxc5 {[%emt 0:00:01]} 11. Qa4 {[%emt 0:00:04]} cxd4 {[%emt 0:00:13]} 12. cxd4 {[%emt 0:00:04] [#] White has an edge.} Nb6 $146 {[%emt 0:00:01]} ({Predecessor:} 12... Ne4 13. Nxe4 dxe4 14. Nd2 Nb6 15. Qa3 f6 16. Bh4 g5 17. Bg3 f5 18. f4 gxf4 {½-½ (30) Plachetka,J (2451)-Studnicka,T (2124) Klatovy 2003}) 13. Qa3 {[%emt 0:00:07]} e6 {[%emt 0:00:22]} (13... h6 $14 14. Bh4 Qd6) 14. Ne5 {[%emt 0:00:13]} (14. Rfc1 $142) 14... h6 $16 {[%emt 0:00:15]} 15. Bh4 {[%emt 0:00:02][%cal Bg5h4,Bh4g3,Bg3c7][%mdl 32] 0x0.0005ed138493dp-1022s more active pieces. The black rooks are badly placed.} g5 {[%emt 0:00:08]} 16. Bg3 {[%emt 0:00:01]} Nfd7 {[%emt 0:00:03]} 17. Nd3 {[%emt 0:00:04]} Re8 {[%emt 0:00:23]} 18. Rac1 {[%emt 0:00:02]} a5 {[%emt 0:00:14] [#] A mistake that costs the game.} (18... Bf8 $16 19. Nc5 Qc8) 19. Bc7 $1 $18 {[%emt 0:00:04]} Qe7 {[%emt 0:00:17]} 20. Qxe7 {[%emt 0:00:15]} Rxe7 {[%emt 0:00:00]} 21. Rb1 {[%emt 0:00:01]} Rc8 $2 {[%emt 0:00:44]} (21... Nc4 22. Rxb7 (22. Nxc4 dxc4 23. Rxb7 cxd3 $16) 22... Nxd2) 22. Bxb6 {[%emt 0:00:04]} Nxb6 {[%emt 0:00:01]} 23. Rxb6 {[%emt 0:00:01]} Rc2 {[%emt 0:00:04]} 24. Rd1 {[%emt 0:00:08]} Rec7 {[%emt 0:00:02]} 25. Nc5 {[%emt 0:00:03]} Bc8 {[%emt 0:00:01]} 26. a4 {[%emt 0:00:07]} e5 {[%emt 0:00:01]} 27. Bd3 {[%emt 0:00:09]} Rc3 {[%emt 0:00:00]} 28. Ndb3 {[%emt 0:00:06]} exd4 {[%emt 0:00:04]} 29. exd4 {[%emt 0:00:01]} Bxd4 {[%emt 0:00:05]} 30. Nxd4 {[%emt 0:00:02]} R3xc5 {[%emt 0:00:01]} 31. h3 {[%emt 0:00:08]} Bd7 {[%emt 0:00:06]} 32. Nb5 {[%emt 0:00:04]} f5 $2 {[%emt 0:00:09] [#]} (32... R7c6) 33. Nxc7 {[%emt 0:00:03]} Rxc7 {[%emt 0:00:01]} 34. Rd6 {[%emt 0:00:02] Weighted Error Value: White=0.11 (very precise) /Black=0.41} 1-0

[Event "German-ch Blitz Women 2022"]
[Site "Magdeburg"]
[Date "2022.08.13"]
[Round "18.2"]
[White "Skibbe, Diana"]
[Black "Grabowski, Petra"]
[Result "1-0"]
[ECO "C10"]
[WhiteElo "1943"]
[BlackElo "1643"]
[Annotator "TA"]
[PlyCount "49"]
[EventDate "2022.08.10"]
[EventType "tourn"]
[EventCountry "GER"]
[SourceTitle "playchess.com"]
[Source "ChessBase"]
[SourceQuality "1"]
[TimeControl "180+2"]

{[%evp 13,48,0,0,0,2,-5,-8,0,0,-29,-32,-21,7,0,7,-19,139,131,486,482,739,735,764,442,481,449,763,752,1119,914,29997,992,1463,1450,29998,29999,29999]} 1. e4 {[%emt 0:00:01]} e6 {[%emt 0:00:01]} 2. d4 {[%emt 0:00:01]} d5 {[%emt 0:00:01]} 3. Nc3 {[%emt 0:00:01]} dxe4 {[%emt 0:00:01]} 4. Nxe4 {[%emt 0:00:01]} Nd7 {[%emt 0:00:01]} 5. Nf3 {[%emt 0:00:05]} Ngf6 {[%emt 0:00:01]} 6. Ng3 {[%emt 0:00:05]} Be7 {[%emt 0:00:02]} 7. Bd3 {[%emt 0:00:01]} b6 {[%emt 0:00:09]} 8. c3 {[%emt 0:00:04][%cal Bc2c3,Bc3d4,Bd4e5][%mdl 32] C10: French with 3 Nc3: Unusual Black 3rd moves and 3...dxe4.} Bb7 {[%emt 0:00:01]} 9. O-O {[%emt 0:00:08]} O-O {[%emt 0:00:04]} 10. Qe2 {[%emt 0:00:01] The position is equal.} c5 {[%emt 0:00:07]} 11. Ne5 {[%emt 0:00:10]} cxd4 {[%emt 0:00:11]} 12. cxd4 {[%emt 0:00:01]} Nxe5 {[%emt 0:00:07]} 13. dxe5 {[%emt 0:00:02]} Qd5 {[%emt 0:00:09][%csl Gb7][%cal Rd5g2]} 14. f3 {[%emt 0:00:12]} Bc5+ $2 {[%emt 0:00:03]} (14... Qd4+ $11 15. Kh1 Nd5) 15. Kh1 $16 {[%emt 0:00:02] [#]} Nh5 $146 {[%emt 0:00:15][%mdl 8192] This costs Black the game.} (15... Ne8 $16) ({Predecessor:} 15... Rfd8 16. Bc4 Qd4 17. exf6 Qh4 18. Ne4 Bxe4 19. fxe4 Rd4 20. Bf4 e5 21. g3 Qh3 22. Bxe5 Rdd8 23. fxg7 {1-0 (23) Guenther,R (1554)-Lehmann,G (1487) Frankfurt 2015}) 16. Nxh5 $18 {[%emt 0:00:10]} Rad8 {[%emt 0:00:17]} (16... Qd4 $142 17. Bf4 Qd8) 17. Be4 {[%emt 0:00:02]} Qd7 {[%emt 0:00:02]} 18. Bxb7 {[%emt 0:00:06]} Qxb7 {[%emt 0:00:01]} 19. Bg5 {[%emt 0:00:07]} Rd5 {[%emt 0:00:11]} (19... Be7 $142 20. Qe3 Kh8) 20. f4 {[%emt 0:00:04]} Bb4 {[%emt 0:00:08]} 21. Qg4 {[%emt 0:00:07][%cal Oh5f6] Nf6+! would kill now.} Kh8 {[%emt 0:00:33] [#]} 22. Nxg7 $1 {[%emt 0:00:03]} Rd2 {[%emt 0:00:10]} (22... Rg8 23. Nf5) 23. Bf6 {[%emt 0:00:09][%cal Rg7h5]} h5 {[%emt 0:00:22]} 24. Nxh5+ {[%emt 0:00:05]} Kh7 {[%emt 0:00:02]} 25. Qg7# {[%emt 0:00:01] Weighted Error Value: White=0.50/Black=1.60} 1-0

[Event "German-ch Blitz Women 2022"]
[Site "Magdeburg"]
[Date "2022.08.13"]
[Round "18.3"]
[White "Rath, Alina"]
[Black "Khrapko, Marharyta"]
[Result "1-0"]
[ECO "A25"]
[WhiteElo "2062"]
[BlackElo "2128"]
[Annotator "NA RC"]
[PlyCount "118"]
[EventDate "2022.08.10"]
[EventType "tourn"]
[EventCountry "GER"]
[SourceTitle "playchess.com"]
[Source "ChessBase"]
[SourceQuality "1"]
[TimeControl "180+2"]

1. c4 {[%emt 0:00:01]} e5 {[%emt 0:00:01]} 2. Nc3 {[%emt 0:00:01]} Nc6 {[%emt 0:00:01]} 3. g3 {[%emt 0:00:01]} Bc5 {[%emt 0:00:01]} 4. Bg2 {[%emt 0:00:01]} a6 {[%emt 0:00:01]} 5. d3 {[%emt 0:00:01]} d6 {[%emt 0:00:00]} 6. e3 {[%emt 0:00:01]} h5 {[%emt 0:00:02]} 7. h4 {[%emt 0:00:01]} Bg4 {[%emt 0:00:05]} 8. Nge2 {[%emt 0:00:03]} Nf6 {[%emt 0:00:05]} 9. a3 {[%emt 0:00:02]} Bb6 {[%emt 0:00:04]} 10. Qc2 {[%emt 0:00:04]} Qd7 {[%emt 0:00:07]} 11. b3 {[%emt 0:00:11]} Rd8 {[%emt 0:00:05]} 12. Bb2 {[%emt 0:00:07]} O-O {[%emt 0:00:05]} 13. O-O {[%emt 0:00:03]} Ne7 {[%emt 0:00:12]} 14. d4 {[%emt 0:00:07]} Bf5 {[%emt 0:00:27]} 15. Qd2 {[%emt 0:00:09]} e4 {[%emt 0:00:14]} 16. d5 {[%emt 0:00:11]} Bh3 {[%emt 0:00:17]} 17. Nf4 {[%emt 0:00:27]} Bxg2 {[%emt 0:00:03]} 18. Kxg2 {[%emt 0:00:02]} Qf5 {[%emt 0:00:12]} 19. Nce2 {[%emt 0:00:20]} Ng6 {[%emt 0:00:25]} 20. Bxf6 {[%emt 0:00:23]} Qxf6 {[%emt 0:00:08]} 21. Rac1 {[%emt 0:00:11]} Ne5 {[%emt 0:00:05]} 22. Qc2 {[%emt 0:00:14]} Qf5 {[%emt 0:00:18]} 23. Ng1 {[%emt 0:00:01]} Rde8 {[%emt 0:00:10]} 24. Qd1 {[%emt 0:00:06]} g6 {[%emt 0:00:06]} 25. Nge2 {[%emt 0:00:12]} Qg4 {[%emt 0:00:06]} 26. Ng1 {[%emt 0:00:07]} Nf3 {[%emt 0:00:05]} 27. Nfh3 {[%emt 0:00:12]} Nxh4+ {[%emt 0:00:04]} 28. Kh2 {[%emt 0:00:01]} Nf3+ {[%emt 0:00:04]} 29. Kg2 {[%emt 0:00:01]} Qf5 {[%emt 0:00:09]} 30. Nxf3 {[%emt 0:00:04]} exf3+ {[%emt 0:00:02]} 31. Qxf3 {[%emt 0:00:02]} Qd3 {[%emt 0:00:06]} 32. Rb1 {[%emt 0:00:02]} a5 {[%emt 0:00:01]} 33. Nf4 {[%emt 0:00:02]} Qf5 {[%emt 0:00:01]} 34. Rh1 {[%emt 0:00:02]} Bc5 {[%emt 0:00:02]} 35. a4 {[%emt 0:00:01]} Kg7 {[%emt 0:00:05]} 36. Ne2 {[%emt 0:00:04]} Qxf3+ {[%emt 0:00:04]} 37. Kxf3 {[%emt 0:00:01]} Re5 {[%emt 0:00:01]} 38. Nf4 {[%emt 0:00:06]} Rfe8 {[%emt 0:00:02]} 39. Nd3 {[%emt 0:00:01]} Rf5+ {[%emt 0:00:01]} 40. Kg2 {[%emt 0:00:01]} Bb6 {[%emt 0:00:03]} 41. Rbe1 {[%emt 0:00:01]} Re4 {[%emt 0:00:02]} 42. Nc1 {[%emt 0:00:09]} c6 {[%emt 0:00:02]} 43. Ne2 {[%emt 0:00:01]} cxd5 {[%emt 0:00:02]} 44. Nc3 {[%emt 0:00:01]} Re8 {[%emt 0:00:07]} 45. Nxd5 {[%emt 0:00:01]} Bc5 {[%emt 0:00:02]} 46. Rd1 {[%emt 0:00:02]} Rfe5 {[%emt 0:00:02]} 47. Rd3 {[%emt 0:00:01]} Re4 {[%emt 0:00:02]} 48. Rhd1 {[%emt 0:00:01]} b6 {[%emt 0:00:02]} 49. f3 {[%emt 0:00:02]} R4e5 {[%emt 0:00:03]} 50. e4 {[%emt 0:00:01]} Rc8 {[%emt 0:00:03]} 51. Re1 {[%emt 0:00:02]} Ree8 {[%emt 0:00:02]} 52. f4 {[%emt 0:00:02]} f6 {[%emt 0:00:02]} 53. Kf3 {[%emt 0:00:01]} Kf7 {[%emt 0:00:01]} 54. Rh1 {[%emt 0:00:01]} Re6 {[%emt 0:00:01]} 55. g4 {[%emt 0:00:01]} hxg4+ {[%emt 0:00:02]} 56. Kxg4 {[%emt 0:00:01]} Rxe4 {[%emt 0:00:05]} 57. Rh7+ {[%emt 0:00:03]} Kg8 {[%emt 0:00:01]} 58. Nxf6+ {[%emt 0:00:01]} Kf8 {[%emt 0:00:02]} 59. Nxe4 {[%emt 0:00:02]} Bb4 {[%emt 0:00:00]} 1-0

[Event "German-ch Blitz Women 2022"]
[Site "Magdeburg"]
[Date "2022.08.13"]
[Round "18.4"]
[White "Kunze, Kerstin"]
[Black "Daemering, Katrin"]
[Result "0-1"]
[ECO "B52"]
[WhiteElo "2020"]
[BlackElo "1965"]
[Annotator "TA"]
[PlyCount "57"]
[EventDate "2022.08.10"]
[EventType "tourn"]
[EventCountry "GER"]
[SourceTitle "playchess.com"]
[Source "ChessBase"]
[SourceQuality "1"]
[TimeControl "180+2"]

{[%evp 10,57,0,0,11,-17,-11,-20,-11,-16,-11,-14,-12,-32,-23,-41,-19,-35,0,0,-8,-10,-6,-9,0,-91,-78,-77,-59,-60,-65,-200,-181,-175,-111,-151,-133,-122,-44,-36,-30,-192,-35,-138,-30,-104,-60,-70,-41,-104]} 1. e4 c5 2. Nf3 d6 3. Bb5+ Bd7 4. Bxd7+ Nxd7 5. d4 cxd4 6. Nxd4 Ngf6 {B52: Sicilian: Moscow Variation with 3...Bd7.} 7. Nd2 {[#]} a6 $146 ({Predecessor:} 7... g6 8. c4 Bg7 9. O-O O-O 10. b4 a6 11. Ba3 e5 12. N4f3 Qc7 13. h3 Rfd8 14. Rc1 {1-0 (27) Horvath,P (674)-Neil,C (515) LSS email 2019}) 8. O-O Rc8 {The position is equal.} 9. c3 e6 10. Qe2 Be7 11. f4 O-O 12. N2f3 Qb6 13. Kh1 Nc5 14. e5 Nd5 15. f5 dxe5 16. Nxe5 Bf6 17. Nef3 (17. fxe6 $11 {remains equal.} fxe6 18. Ndf3 (18. Nc4 Qc7 $15)) 17... exf5 18. Nxf5 Rfe8 $1 19. Qf2 Ne4 {Prevents Bg5.} 20. Qc2 (20. Qxb6 $15 Nxb6 21. Kg1) 20... Qb5 $36 {[%mdl 2048] Black is really pushing.} 21. Bd2 {[#]} Nb4 (21... Ndxc3 $1 $19 {[%mdl 512]} 22. Nh6+ gxh6 23. Bxc3 Bxc3 24. bxc3 Rxc3) 22. Qb3 $17 Qxf5 23. Qxb4 Nxd2 (23... Qh5 $17 {Threatens to win with ...Ng3+.} 24. Rfe1 Nf2+ 25. Kg1 Nd3 26. Rxe8+ Rxe8) 24. Nxd2 $15 Qd3 25. Qf4 {[#]} (25. Nf3 $11 {and White is okay.}) 25... Rcd8 $2 ({Better is} 25... Re2 $1 $19 26. Rf2 Rxf2 27. Qxf2 Qc2) 26. Nf3 (26. Rae1 $15) 26... Re4 (26... Re2 $17 27. Qb4 Qc2 28. Qxb7 Rxg2) 27. Qg3 (27. Qf5 $11) 27... Rde8 {Black is more active.} 28. Rad1 Qb5 29. Nd4 {Weighted Error Value: White=0.50/Black=0.33} (29. b3 $15) 0-1